[Event "Zalakaros Barczay Memorial 2020"]
[Site "Zalakaros"]
[Date "2020.08.31"]
[Round "1.11"]
[White "Bodrogi, Bendeguz"]
[Black "Borsfai, Attila"]
[Result "1-0"]
[ECO "A16"]
[WhiteElo "2078"]
[BlackElo "1684"]
[Annotator "NA"]
[PlyCount "135"]
[EventDate "2020.08.31"]
[EventType "swiss"]
[EventCountry "HUN"]
[SourceTitle "playchess.com"]
[Source "ChessBase"]
[SourceQuality "1"]
[TimeControl "40/5400+30:1800+30"]

1. c4 {[%emt 0:00:17]} Nf6 {[%emt 0:00:29]} 2. Nc3 {[%emt 0:00:20]} d6 {[%emt 0:02:46]} 3. g3 {[%emt 0:00:48]} c6 {[%emt 0:01:15]} 4. Bg2 {[%emt 0:00:12]} g6 {[%emt 0:02:07]} 5. Nf3 {[%emt 0:00:12]} Bg7 {[%emt 0:00:10]} 6. O-O {[%emt 0:00:19]} O-O {[%emt 0:00:07]} 7. b3 {[%emt 0:00:58]} Qc7 {[%emt 0:06:52] A16: English Opening: 1...Nf6 with ...d5.} 8. Bb2 {[%emt 0:00:20]} e5 {[%emt 0:02:25] [#]} 9. Rc1 $146 {[%emt 0:01:57]} ({Predecessor:} 9. Qc2 Nbd7 10. d4 Re8 11. e3 a6 12. Rac1 Nf8 13. Rfd1 Bf5 14. e4 Bg4 15. d5 c5 16. h3 Bxf3 17. Bxf3 h5 18. h4 N8h7 19. Kg2 {1-0 (61) Gritsak,O (2497)-Maliutin,O (2319) Lutsk 2017}) 9... Qe7 {[%emt 0:02:33]} 10. e4 {[%emt 0:03:51]} Nh5 {[%emt 0:02:57]} 11. d4 {[%emt 0:01:20]} f5 {[%emt 0:08:24]} 12. exf5 {[%emt 0:03:44]} Bxf5 {[%emt 0:00:33]} 13. Re1 {[%emt 0:00:55]} Nd7 {[%emt 0:03:50]} 14. dxe5 {[%emt 0:04:39]} dxe5 {[%emt 0:01:33]} 15. Nd4 {[%emt 0:05:12]} Qf6 {[%emt 0:02:54]} 16. Nxf5 {[%emt 0:02:18]} Qxf5 {[%emt 0:00:22]} 17. Qe2 {[%emt 0:00:28]} Nhf6 {[%emt 0:01:47]} 18. Rcd1 {[%emt 0:01:18]} Rad8 {[%emt 0:01:44]} 19. Ne4 {[%emt 0:04:48]} Nxe4 {[%emt 0:05:39]} 20. Bxe4 {[%emt 0:00:15]} Qg5 {[%emt 0:01:14]} 21. Ba3 {[%emt 0:01:30]} Rfe8 {[%emt 0:00:23]} 22. h4 {[%emt 0:00:11]} Qf6 {[%emt 0:01:05]} 23. Rd6 {[%emt 0:00:30]} Qf7 {[%emt 0:00:31]} 24. Rd3 {[%emt 0:14:02]} Nf6 $16 {[%emt 0:02:58]} 25. Red1 {[%emt 0:01:17]} Rxd3 {[%emt 0:00:34]} 26. Rxd3 {[%emt 0:02:27]} Nxe4 {[%emt 0:00:52]} 27. Qxe4 {[%emt 0:00:10]} Bf8 {[%emt 0:02:05]} 28. Bd6 {[%emt 0:07:48]} Qf5 {[%emt 0:06:33]} 29. Qe2 {[%emt 0:05:10]} Bxd6 {[%emt 0:03:54]} 30. Rxd6 {[%emt 0:00:30]} e4 {[%emt 0:02:47]} 31. Qe3 {[%emt 0:05:02]} a6 {[%emt 0:00:40]} 32. Kg2 {[%emt 0:02:33]} Rf8 {[%emt 0:06:13]} 33. Qd4 {[%emt 0:02:47]} Qf3+ {[%emt 0:07:56]} 34. Kg1 {[%emt 0:01:17]} e3 {[%emt 0:00:34]} 35. Qxe3 {[%emt 0:00:42]} Qxe3 {[%emt 0:00:10]} 36. fxe3 {[%emt 0:00:07]} Rf3 {[%emt 0:00:24]} 37. Rd8+ {[%emt 0:02:07]} Kg7 {[%emt 0:01:09]} 38. Rd7+ {[%emt 0:00:07]} Kh6 {[%emt 0:00:23]} 39. Rxb7 {[%emt 0:00:08]} Rxg3+ {[%emt 0:00:16]} 40. Kf2 {[%emt 0:00:00]} Rh3 {[%emt 0:00:00]} 41. Rb6 {[%emt 0:00:31]} Rh2+ {[%emt 0:00:35]} 42. Kg3 {[%emt 0:00:27]} Rxa2 {[%emt 0:00:04]} 43. Rxc6 {[%emt 0:00:15]} Rb2 {[%emt 0:01:21]} 44. Rb6 {[%emt 0:01:53]} a5 {[%emt 0:00:08]} 45. Rb5 {[%emt 0:00:07]} Kg7 {[%emt 0:00:33]} 46. Kf4 {[%emt 0:01:16]} h6 {[%emt 0:01:13]} 47. e4 {[%emt 0:01:25]} Rh2 {[%emt 0:01:17]} 48. Kg3 {[%emt 0:03:37]} Re2 {[%emt 0:01:06]} 49. Kf3 {[%emt 0:00:25]} Rh2 {[%emt 0:00:02]} 50. Rxa5 {[%emt 0:00:35]} Rh3+ {[%emt 0:00:13]} 51. Kg4 {[%emt 0:03:00]} Rxb3 {[%emt 0:00:13]} 52. Ra7+ {[%emt 0:06:57]} Kf6 {[%emt 0:00:07]} 53. Ra6+ {[%emt 0:00:12]} Kf7 {[%emt 0:00:04]} 54. h5 {[%emt 0:00:31]} gxh5+ {[%emt 0:00:44]} 55. Kf5 {[%emt 0:01:18]} Rc3 {[%emt 0:01:02]} 56. Ra7+ {[%emt 0:03:49]} Ke8 {[%emt 0:00:09]} 57. Ke6 {[%emt 0:00:14]} Kd8 {[%emt 0:00:02]} 58. Kd5 {[%emt 0:00:19]} Rd3+ {[%emt 0:00:02]} 59. Ke5 {[%emt 0:00:58]} Rg3 {[%emt 0:01:40]} 60. Ra6 {[%emt 0:00:33]} Kd7 {[%emt 0:01:49]} 61. Rxh6 {[%emt 0:00:30]} Rg5+ {[%emt 0:00:08]} 62. Kd4 {[%emt 0:00:49]} Kc7 {[%emt 0:00:31]} 63. e5 {[%emt 0:00:16]} Kd7 {[%emt 0:00:02]} 64. Kd5 {[%emt 0:00:10]} Ke7 {[%emt 0:00:15]} 65. c5 {[%emt 0:00:08]} Kd7 {[%emt 0:00:42]} 66. c6+ {[%emt 0:00:13]} Ke7 {[%emt 0:00:28]} 67. Rh7+ {[%emt 0:00:36]} Kd8 {[%emt 0:00:06]} 68. Kd6 {[%emt 0:00:19]} 1-0

[Event "Zalakaros Barczay Memorial 2020"]
[Site "Zalakaros"]
[Date "2020.09.01"]
[Round "2.1"]
[White "Piroska, Istvan"]
[Black "Aczel, Gergely"]
[Result "0-1"]
[ECO "B40"]
[WhiteElo "2131"]
[BlackElo "2532"]
[Annotator "RC"]
[PlyCount "80"]
[EventDate "2020.08.31"]
[EventType "swiss"]
[EventCountry "HUN"]
[SourceTitle "playchess.com"]
[Source "ChessBase"]
[SourceQuality "1"]
[TimeControl "40/5400+30:1800+30"]

1. e4 {[%emt 0:00:09]} c5 {[%emt 0:00:02]} 2. Nf3 {[%emt 0:00:11]} e6 {[%emt 0:00:04]} 3. d4 {[%emt 0:00:11]} cxd4 {[%emt 0:00:05]} 4. Nxd4 {[%emt 0:00:09]} Nf6 {[%emt 0:00:04]} 5. Nc3 {[%emt 0:00:22]} Bb4 {[%emt 0:00:04]} 6. e5 {[%emt 0:00:59]} Nd5 {[%emt 0:00:06]} 7. Qg4 {[%emt 0:00:36]} Kf8 {[%emt 0:00:12]} 8. Bd2 {[%emt 0:04:10]} h5 {[%emt 0:00:05]} 9. Qg3 {[%emt 0:04:18]} h4 {[%emt 0:00:04]} 10. Qg4 {[%emt 0:01:25]} Nc6 {[%emt 0:00:04]} 11. Nxc6 {[%emt 0:01:24]} bxc6 {[%emt 0:00:14]} 12. Bd3 {[%emt 0:04:55]} Qa5 {[%emt 0:07:00]} 13. a3 {[%emt 0:02:30]} Ba6 {[%emt 0:19:30]} 14. O-O {[%emt 0:04:21]} Bxc3 {[%emt 0:00:55]} 15. bxc3 {[%emt 0:02:23]} h3 {[%emt 0:01:06]} 16. Rfd1 {[%emt 0:07:25]} Bxd3 {[%emt 0:16:14]} 17. cxd3 {[%emt 0:01:48]} Ne7 {[%emt 0:00:28]} 18. d4 {[%emt 0:01:41]} Nf5 {[%emt 0:07:35]} 19. g3 {[%emt 0:03:14]} Qd5 {[%emt 0:28:13]} 20. f3 {[%emt 0:00:51]} f6 {[%emt 0:04:59]} 21. Qe4 {[%emt 0:05:38]} Rb8 {[%emt 0:02:09]} 22. Rab1 {[%emt 0:14:18]} Kf7 {[%emt 0:00:02]} 23. exf6 {[%emt 0:02:06]} gxf6 {[%emt 0:00:15]} 24. g4 {[%emt 0:01:01]} Qxe4 {[%emt 0:03:45]} 25. fxe4 {[%emt 0:00:10]} Rxb1 {[%emt 0:00:04]} 26. Rxb1 {[%emt 0:00:11]} Nd6 {[%emt 0:00:06]} 27. Kf2 {[%emt 0:03:57]} Nxe4+ {[%emt 0:00:18]} 28. Ke3 {[%emt 0:00:09]} Nxd2 {[%emt 0:02:08]} 29. Kxd2 {[%emt 0:00:08]} Rg8 {[%emt 0:00:04]} 30. Rg1 {[%emt 0:00:55]} f5 {[%emt 0:01:03]} 31. g5 {[%emt 0:00:19]} Rb8 {[%emt 0:00:08]} 32. Kc2 {[%emt 0:00:29]} Kg6 {[%emt 0:00:07]} 33. Rg3 {[%emt 0:00:09]} Rh8 {[%emt 0:00:15]} 34. Kd3 {[%emt 0:00:34]} Rh5 {[%emt 0:02:19]} 35. Ke3 {[%emt 0:00:27]} d6 {[%emt 0:00:17]} 36. c4 {[%emt 0:00:22]} e5 {[%emt 0:00:12]} 37. dxe5 {[%emt 0:00:58]} dxe5 {[%emt 0:00:01]} 38. Kf2 {[%emt 0:00:19]} f4 {[%emt 0:03:07]} 39. Rd3 {[%emt 0:00:17]} Kxg5 {[%emt 0:01:31]} 40. Rd6 {[%emt 0:00:00]} Rh6 {[%emt 0:00:00]} 0-1

[Event "Zalakaros Barczay Memorial 2020"]
[Site "Zalakaros"]
[Date "2020.09.02"]
[Round "3.4"]
[White "Leszko, Bence"]
[Black "Stifter, Ewald"]
[Result "1-0"]
[ECO "A05"]
[WhiteElo "2305"]
[BlackElo "1937"]
[Annotator "ChessBase"]
[PlyCount "74"]
[EventDate "2020.08.31"]
[EventType "swiss"]
[EventCountry "HUN"]
[SourceTitle "playchess.com"]
[Source "ChessBase"]
[SourceQuality "1"]
[TimeControl "40/5400+30:1800+30"]

1. Nf3 {[%emt 0:00:01]} Nf6 {[%emt 0:10:39]} 2. c4 {[%emt 0:00:06]} c5 {[%emt 0:00:41]} 3. Nc3 {[%emt 0:00:20]} g6 {[%emt 0:00:47]} 4. e4 {[%emt 0:00:40]} d6 {[%emt 0:00:04]} 5. d4 {[%emt 0:00:19]} cxd4 {[%emt 0:01:08]} 6. Nxd4 {[%emt 0:00:07]} Bg7 {[%emt 0:00:26]} 7. Be2 {[%emt 0:00:16]} O-O {[%emt 0:00:51]} 8. Be3 {[%emt 0:00:16]} Nc6 {[%emt 0:01:41]} 9. O-O {[%emt 0:00:12]} Nxd4 {[%emt 0:01:28]} 10. Bxd4 {[%emt 0:00:09]} Be6 {[%emt 0:00:50]} 11. f4 {[%emt 0:02:18]} Rc8 {[%emt 0:03:58]} 12. b3 {[%emt 0:01:14]} Qa5 {[%emt 0:07:22]} 13. Kh1 {[%emt 0:03:16]} Rcd8 {[%emt 0:12:21]} 14. Qe1 {[%emt 0:01:18]} b6 {[%emt 0:04:30]} 15. a3 {[%emt 0:01:34]} Bg4 {[%emt 0:02:07]} 16. Bxg4 {[%emt 0:07:16]} Nxg4 {[%emt 0:00:05]} 17. Bxg7 {[%emt 0:00:07]} Kxg7 {[%emt 0:00:19]} 18. Rf3 {[%emt 0:03:14]} h5 {[%emt 0:05:58]} 19. Qh4 {[%emt 0:04:18]} Nf6 {[%emt 0:01:27]} 20. e5 {[%emt 0:03:01]} dxe5 {[%emt 0:00:34]} 21. b4 {[%emt 0:00:04]} Qa6 {[%emt 0:00:53]} 22. fxe5 {[%emt 0:00:11]} Ng4 {[%emt 0:00:51]} 23. Re1 {[%emt 0:12:00]} Qxc4 {[%emt 0:03:37]} 24. Qxe7 {[%emt 0:00:43]} Rfe8 {[%emt 0:10:27]} 25. Qg5 {[%emt 0:00:28]} Rd3 {[%emt 0:06:47]} 26. Nb1 {[%emt 0:40:46]} Rxf3 {[%emt 0:01:55]} 27. gxf3 {[%emt 0:02:00]} Rxe5 {[%emt 0:04:25]} 28. Qd2 {[%emt 0:00:25]} Rxe1+ {[%emt 0:05:41]} 29. Qxe1 {[%emt 0:00:01]} Nf6 {[%emt 0:00:45]} 30. Kg1 {[%emt 0:01:12]} Qd4+ {[%emt 0:00:39]} 31. Kg2 {[%emt 0:02:57]} Qb2+ {[%emt 0:00:37]} 32. Kg3 {[%emt 0:00:54]} h4+ {[%emt 0:03:57]} 33. Kh3 {[%emt 0:00:07]} g5 {[%emt 0:00:23]} 34. Nc3 {[%emt 0:02:17]} Qxa3 {[%emt 0:01:22]} 35. Qe3 {[%emt 0:00:19]} Kg6 {[%emt 0:01:59]} 36. Qd3+ {[%emt 0:00:01]} Kh6 {[%emt 0:00:01]} 37. Qd4 {[%emt 0:00:17]} Nh7 {[%emt 0:02:19]} 1-0

[Event "Zalakaros Barczay Memorial 2020"]
[Site "Zalakaros"]
[Date "2020.09.02"]
[Round "3.5"]
[White "Molnar Gabor, Roland"]
[Black "Dobos, Jozsef"]
[Result "0-1"]
[ECO "A45"]
[WhiteElo "2051"]
[BlackElo "2254"]
[Annotator "ChessBase"]
[PlyCount "72"]
[EventDate "2020.08.31"]
[EventType "swiss"]
[EventCountry "HUN"]
[SourceTitle "playchess.com"]
[Source "ChessBase"]
[SourceQuality "1"]
[TimeControl "40/5400+30:1800+30"]

1. d4 {[%emt 0:00:13]} Nf6 {[%emt 0:00:17]} 2. Bf4 {[%emt 0:00:34]} g6 {[%emt 0:03:55]} 3. Nc3 {[%emt 0:00:02]} c5 {[%emt 0:06:21]} 4. dxc5 {[%emt 0:02:29]} Qa5 {[%emt 0:00:59]} 5. Nf3 {[%emt 0:01:30]} Bg7 {[%emt 0:03:06]} 6. Qd2 {[%emt 0:02:48]} Qxc5 {[%emt 0:02:29]} 7. e4 {[%emt 0:01:59]} d6 {[%emt 0:01:17]} 8. Be2 {[%emt 0:05:57]} O-O {[%emt 0:01:40]} 9. O-O {[%emt 0:01:00]} Nc6 {[%emt 0:09:52]} 10. Bh6 {[%emt 0:09:44]} Bg4 {[%emt 0:03:20]} 11. Bxg7 {[%emt 0:05:24]} Kxg7 {[%emt 0:00:23]} 12. Rad1 {[%emt 0:17:39]} Bxf3 {[%emt 0:02:21]} 13. Bxf3 {[%emt 0:00:51]} Rac8 {[%emt 0:00:49]} 14. Na4 {[%emt 0:07:53]} Qe5 {[%emt 0:07:40]} 15. Rfe1 {[%emt 0:13:21]} b5 {[%emt 0:00:58]} 16. Nc3 {[%emt 0:00:09]} b4 {[%emt 0:00:15]} 17. Na4 {[%emt 0:02:19]} Qa5 {[%emt 0:04:08]} 18. b3 {[%emt 0:00:34]} Ne5 {[%emt 0:02:22]} 19. a3 {[%emt 0:06:38]} Nxf3+ {[%emt 0:01:16]} 20. gxf3 {[%emt 0:00:01]} Qh5 {[%emt 0:00:17]} 21. Re3 {[%emt 0:11:23]} bxa3 {[%emt 0:02:15]} 22. c4 {[%emt 0:01:17]} Rb8 {[%emt 0:04:31]} 23. Ra1 {[%emt 0:03:28]} Qg5+ {[%emt 0:00:25]} 24. Kh1 {[%emt 0:00:13]} Rxb3 {[%emt 0:00:14]} 25. Rg1 {[%emt 0:01:13]} Qf4 {[%emt 0:01:07]} 26. Nc3 {[%emt 0:01:42]} Rb2 {[%emt 0:00:40]} 27. Qe1 {[%emt 0:01:08]} a2 {[%emt 0:03:26]} 28. Ne2 {[%emt 0:00:42]} Qh4 {[%emt 0:02:29]} 29. Ng3 {[%emt 0:00:31]} Kh8 {[%emt 0:00:54]} 30. Ra3 {[%emt 0:01:34]} Rfb8 {[%emt 0:04:35]} 31. Kg2 {[%emt 0:00:30]} Rc2 {[%emt 0:03:20]} 32. Rf1 {[%emt 0:00:40]} Nh5 {[%emt 0:08:04]} 33. Nxh5 {[%emt 0:00:24]} gxh5 {[%emt 0:00:53]} 34. Rxa7 {[%emt 0:00:36]} Rg8+ {[%emt 0:00:30]} 35. Kh1 {[%emt 0:00:01]} Qh3 {[%emt 0:00:29]} 36. Rg1 {[%emt 0:00:03]} Qxf3+ {[%emt 0:00:10]} 0-1

[Event "Zalakaros Barczay Memorial 2020"]
[Site "Zalakaros"]
[Date "2020.09.02"]
[Round "3.6"]
[White "Pasztor, Ferenc"]
[Black "Jeszenszky, Jozsef"]
[Result "1-0"]
[ECO "D02"]
[WhiteElo "2231"]
[BlackElo "2048"]
[Annotator "ChessBase"]
[PlyCount "79"]
[EventDate "2020.08.31"]
[EventType "swiss"]
[EventCountry "HUN"]
[SourceTitle "playchess.com"]
[Source "ChessBase"]
[SourceQuality "1"]
[TimeControl "40/5400+30:1800+30"]

1. d4 {[%emt 0:00:01]} d5 {[%emt 0:28:07]} 2. Nf3 {[%emt 0:00:18]} Nf6 {[%emt 0:00:26]} 3. g3 {[%emt 0:00:12]} c6 {[%emt 0:00:10]} 4. Bg2 {[%emt 0:00:09]} Bf5 {[%emt 0:00:27]} 5. Nh4 {[%emt 0:00:33]} e6 {[%emt 0:02:55]} 6. Nxf5 {[%emt 0:01:26]} exf5 {[%emt 0:00:06]} 7. O-O {[%emt 0:00:16]} Be7 {[%emt 0:02:07]} 8. b3 {[%emt 0:02:23]} O-O {[%emt 0:02:56]} 9. c4 {[%emt 0:00:15]} Ne4 {[%emt 0:01:29]} 10. f3 {[%emt 0:13:03]} Nf6 {[%emt 0:01:43]} 11. Nc3 {[%emt 0:00:48]} Nbd7 {[%emt 0:07:23]} 12. Qd3 {[%emt 0:04:44]} g6 {[%emt 0:04:21]} 13. Bh6 {[%emt 0:00:12]} Re8 {[%emt 0:00:05]} 14. Rad1 {[%emt 0:09:30]} Bb4 {[%emt 0:07:20]} 15. Nb1 {[%emt 0:07:22]} Qe7 {[%emt 0:07:44]} 16. Rf2 {[%emt 0:02:00]} Rad8 {[%emt 0:05:16]} 17. Qc2 {[%emt 0:07:45]} Qe6 {[%emt 0:03:49]} 18. c5 {[%emt 0:12:19]} Ba5 {[%emt 0:02:43]} 19. Bf4 {[%emt 0:03:42]} Rc8 {[%emt 0:01:43]} 20. b4 {[%emt 0:01:25]} Bc7 {[%emt 0:01:58]} 21. Bxc7 {[%emt 0:00:31]} Rxc7 {[%emt 0:00:05]} 22. Nc3 {[%emt 0:00:40]} Rcc8 {[%emt 0:03:40]} 23. a4 {[%emt 0:00:53]} a6 {[%emt 0:00:14]} 24. Rd3 {[%emt 0:08:17]} Nf8 {[%emt 0:03:06]} 25. Qd2 {[%emt 0:04:29]} Kg7 {[%emt 0:00:21]} 26. Rf1 {[%emt 0:05:21]} Rc7 {[%emt 0:06:04]} 27. Re1 {[%emt 0:03:22]} Rce7 {[%emt 0:01:52]} 28. b5 {[%emt 0:03:13]} axb5 {[%emt 0:00:54]} 29. axb5 {[%emt 0:00:06]} Ra8 {[%emt 0:00:08]} 30. b6 {[%emt 0:02:57]} Ree8 {[%emt 0:00:20]} 31. e4 {[%emt 0:00:59]} fxe4 {[%emt 0:00:17]} 32. fxe4 {[%emt 0:00:09]} dxe4 {[%emt 0:01:59]} 33. Bxe4 {[%emt 0:01:57]} Qc4 {[%emt 0:03:13]} 34. Re2 {[%emt 0:00:59]} Ra3 {[%emt 0:01:07]} 35. Bf3 {[%emt 0:00:45]} Rxe2 {[%emt 0:00:49]} 36. Bxe2 {[%emt 0:00:10]} Ne6 {[%emt 0:00:04]} 37. Kg2 {[%emt 0:02:42]} h6 {[%emt 0:00:26]} 38. d5 {[%emt 0:00:25]} Nxc5 {[%emt 0:00:59]} 39. Rf3 {[%emt 0:00:36]} cxd5 {[%emt 0:00:31]} 40. Bxc4 {[%emt 0:00:00]} 1-0

[Event "Zalakaros Barczay Memorial 2020"]
[Site "Zalakaros"]
[Date "2020.09.02"]
[Round "3.7"]
[White "Metaxasz, Vaszilisz"]
[Black "Hardicsay, Peter"]
[Result "1/2-1/2"]
[ECO "A20"]
[WhiteElo "2039"]
[BlackElo "2196"]
[Annotator "ChessBase"]
[PlyCount "30"]
[EventDate "2020.08.31"]
[EventType "swiss"]
[EventCountry "HUN"]
[SourceTitle "playchess.com"]
[Source "ChessBase"]
[SourceQuality "1"]
[TimeControl "40/5400+30:1800+30"]

1. c4 {[%emt 0:00:03]} e5 {[%emt 0:00:45]} 2. g3 {[%emt 0:00:12]} Nf6 {[%emt 0:00:43]} 3. Bg2 {[%emt 0:00:12]} c6 {[%emt 0:02:11]} 4. d4 {[%emt 0:03:14]} Bb4+ {[%emt 0:02:37]} 5. Bd2 {[%emt 0:00:21]} Bxd2+ {[%emt 0:00:54]} 6. Qxd2 {[%emt 0:00:16]} d6 {[%emt 0:00:18]} 7. Nc3 {[%emt 0:02:20]} Qe7 {[%emt 0:07:47]} 8. dxe5 {[%emt 0:11:41]} dxe5 {[%emt 0:03:51]} 9. Rd1 {[%emt 0:03:31]} Be6 {[%emt 0:13:59]} 10. Nf3 {[%emt 0:03:38]} Nbd7 {[%emt 0:01:24]} 11. b3 {[%emt 0:04:50]} O-O {[%emt 0:01:44]} 12. O-O {[%emt 0:00:37]} h6 {[%emt 0:01:13]} 13. Qd6 Rfe8 {[%emt 0:03:27]} 14. Qxe7 {[%emt 0:15:42]} Rxe7 {[%emt 0:00:11]} 15. Nd2 {[%emt 0:00:25]} Bf5 {[%emt 0:05:04]} 1/2-1/2

[Event "Zalakaros Barczay Memorial 2020"]
[Site "Zalakaros"]
[Date "2020.09.02"]
[Round "3.8"]
[White "Bodrogi, Bendeguz"]
[Black "Ilyes, Peter"]
[Result "1-0"]
[ECO "A10"]
[WhiteElo "2078"]
[BlackElo "1902"]
[Annotator "ChessBase"]
[PlyCount "65"]
[EventDate "2020.08.31"]
[EventType "swiss"]
[EventCountry "HUN"]
[SourceTitle "playchess.com"]
[Source "ChessBase"]
[SourceQuality "1"]
[TimeControl "40/5400+30:1800+30"]

1. c4 {[%emt 0:00:04]} f5 {[%emt 0:00:19]} 2. Nc3 {[%emt 0:01:11]} Nf6 {[%emt 0:00:11]} 3. d4 {[%emt 0:00:18]} e6 {[%emt 0:00:59]} 4. g3 {[%emt 0:00:13]} Bb4 {[%emt 0:00:52]} 5. Bg2 {[%emt 0:00:25]} O-O {[%emt 0:02:35]} 6. Nf3 {[%emt 0:01:27]} Ne4 {[%emt 0:17:14]} 7. Bd2 {[%emt 0:01:57]} Bxc3 {[%emt 0:06:36]} 8. Bxc3 {[%emt 0:00:34]} d6 {[%emt 0:00:31]} 9. O-O {[%emt 0:00:23]} Nxc3 {[%emt 0:01:42]} 10. bxc3 {[%emt 0:00:22]} Nd7 {[%emt 0:02:25]} 11. Rb1 {[%emt 0:01:52]} c6 {[%emt 0:16:25]} 12. Qc2 {[%emt 0:02:15]} e5 {[%emt 0:02:26]} 13. e4 {[%emt 0:12:53]} f4 {[%emt 0:02:08]} 14. c5 {[%emt 0:00:54]} dxc5 {[%emt 0:07:58]} 15. dxe5 {[%emt 0:02:18]} Qe7 {[%emt 0:01:40]} 16. Qd2 {[%emt 0:16:38]} fxg3 {[%emt 0:05:58]} 17. hxg3 {[%emt 0:00:09]} Nxe5 {[%emt 0:01:31]} 18. Nxe5 {[%emt 0:01:31]} Qxe5 {[%emt 0:00:03]} 19. Rfd1 {[%emt 0:00:36]} Qf6 {[%emt 0:03:05]} 20. Qe3 {[%emt 0:00:59]} b6 {[%emt 0:07:29]} 21. e5 {[%emt 0:03:05]} Qe6 {[%emt 0:01:14]} 22. Rd6 {[%emt 0:05:09]} Qxa2 {[%emt 0:00:04]} 23. Rbd1 {[%emt 0:00:10]} Be6 {[%emt 0:03:51]} 24. Bxc6 {[%emt 0:00:37]} Qb3 {[%emt 0:05:53]} 25. Qd2 {[%emt 0:02:05]} Bc4 {[%emt 0:01:17]} 26. Bxa8 {[%emt 0:00:25]} Rxa8 {[%emt 0:00:02]} 27. Rd8+ {[%emt 0:00:14]} Rxd8 {[%emt 0:00:04]} 28. Qxd8+ {[%emt 0:00:22]} Kf7 {[%emt 0:00:06]} 29. Qd7+ {[%emt 0:01:08]} Kf8 {[%emt 0:02:46]} 30. Qc8+ {[%emt 0:03:04]} Kf7 {[%emt 0:00:23]} 31. Rd7+ {[%emt 0:01:56]} Kg6 {[%emt 0:00:16]} 32. Rd6+ {[%emt 0:00:07]} Kg5 {[%emt 0:02:00]} 33. f4+ {[%emt 0:00:14]} 1-0

[Event "Zalakaros Barczay Memorial 2020"]
[Site "Zalakaros"]
[Date "2020.09.02"]
[Round "3.9"]
[White "Somogyi, Gabor"]
[Black "Piroska, Istvan"]
[Result "0-1"]
[ECO "D24"]
[WhiteElo "1830"]
[BlackElo "2131"]
[Annotator "ChessBase"]
[PlyCount "106"]
[EventDate "2020.08.31"]
[EventType "swiss"]
[EventCountry "HUN"]
[SourceTitle "playchess.com"]
[Source "ChessBase"]
[SourceQuality "1"]
[TimeControl "40/5400+30:1800+30"]

1. Nf3 {[%emt 0:00:08]} d5 {[%emt 0:00:15]} 2. d4 {[%emt 0:00:27]} Nf6 {[%emt 0:00:19]} 3. c4 {[%emt 0:00:44]} dxc4 {[%emt 0:00:18]} 4. Nc3 {[%emt 0:00:24]} a6 {[%emt 0:00:23]} 5. a4 {[%emt 0:00:10]} Nc6 {[%emt 0:00:59]} 6. e3 {[%emt 0:09:46]} Na5 {[%emt 0:00:36]} 7. Ne5 {[%emt 0:02:36]} Bf5 {[%emt 0:01:58]} 8. Nxc4 {[%emt 0:04:17]} Nxc4 {[%emt 0:00:38]} 9. Bxc4 {[%emt 0:00:02]} e6 {[%emt 0:01:01]} 10. f3 {[%emt 0:09:23]} c5 {[%emt 0:08:41]} 11. dxc5 {[%emt 0:05:54]} Qxd1+ {[%emt 0:02:16]} 12. Nxd1 {[%emt 0:08:16]} Bxc5 {[%emt 0:00:20]} 13. e4 {[%emt 0:00:15]} Bg6 {[%emt 0:00:29]} 14. Be3 {[%emt 0:06:58]} Rc8 {[%emt 0:00:56]} 15. Bxc5 {[%emt 0:05:53]} Rxc5 {[%emt 0:01:10]} 16. Bb3 {[%emt 0:02:55]} Ke7 {[%emt 0:00:49]} 17. Nc3 {[%emt 0:00:14]} Nd7 {[%emt 0:02:29]} 18. O-O {[%emt 0:03:32]} Ne5 {[%emt 0:00:41]} 19. Rfd1 {[%emt 0:02:09]} Rd8 {[%emt 0:01:22]} 20. Rxd8 {[%emt 0:00:58]} Kxd8 {[%emt 0:00:11]} 21. Rd1+ {[%emt 0:00:28]} Ke7 {[%emt 0:02:33]} 22. Rd4 {[%emt 0:07:45]} f6 {[%emt 0:02:30]} 23. Rb4 {[%emt 0:06:14]} Rc7 {[%emt 0:02:33]} 24. Rb6 {[%emt 0:00:12]} Bf7 {[%emt 0:00:14]} 25. Ne2 {[%emt 0:08:53]} Nd7 {[%emt 0:01:10]} 26. Rb4 {[%emt 0:00:23]} Nc5 {[%emt 0:01:10]} 27. Rb6 {[%emt 0:05:11]} Nxb3 {[%emt 0:04:15]} 28. Rxb3 {[%emt 0:00:03]} e5 {[%emt 0:00:16]} 29. Rb6 {[%emt 0:04:16]} Rd7 {[%emt 0:00:53]} 30. Nc3 {[%emt 0:00:41]} Kd8 {[%emt 0:00:15]} 31. a5 {[%emt 0:04:24]} Kc7 {[%emt 0:00:44]} 32. Na4 {[%emt 0:00:41]} Rd1+ {[%emt 0:07:32]} 33. Kf2 {[%emt 0:00:01]} Rc1 {[%emt 0:00:15]} 34. b4 {[%emt 0:00:27]} Rc2+ {[%emt 0:03:39]} 35. Kg3 {[%emt 0:00:30]} Bc4 {[%emt 0:03:01]} 36. Nc5 {[%emt 0:00:50]} Bf1 {[%emt 0:01:47]} 37. f4 {[%emt 0:01:51]} Kc8 {[%emt 0:03:17]} 38. fxe5 {[%emt 0:00:37]} fxe5 {[%emt 0:00:11]} 39. Nxb7 {[%emt 0:00:14]} Rxg2+ {[%emt 0:00:24]} 40. Kf3 {[%emt 0:00:00]} Rxh2 {[%emt 0:00:00]} 41. Nd6+ {[%emt 0:12:33]} Kd7 {[%emt 0:02:57]} 42. Nf7 {[%emt 0:12:42]} Rh5 {[%emt 0:01:10]} 43. Rb7+ {[%emt 0:01:01]} Ke6 {[%emt 0:03:38]} 44. Nd8+ {[%emt 0:01:08]} Kf6 {[%emt 0:00:23]} 45. Rb6+ {[%emt 0:03:58]} Ke7 {[%emt 0:01:55]} 46. Nc6+ {[%emt 0:00:36]} Ke8 {[%emt 0:01:20]} 47. Rb7 {[%emt 0:01:24]} Bb5 48. Re7+ Kf8 49. Rb7 Ke8 50. Rxb5 axb5 51. a6 Rh3+ 52. Ke2 Ra3 53. Na5 Rc3 0-1

[Event "Zalakaros Barczay Memorial 2020"]
[Site "Zalakaros"]
[Date "2020.09.02"]
[Round "3.10"]
[White "Biro, Sandor"]
[Black "Csiszar, Albert"]
[Result "1-0"]
[ECO "C00"]
[WhiteElo "2141"]
[BlackElo "1866"]
[Annotator "ChessBase"]
[PlyCount "53"]
[EventDate "2020.08.31"]
[EventType "swiss"]
[EventCountry "HUN"]
[SourceTitle "playchess.com"]
[Source "ChessBase"]
[SourceQuality "1"]
[TimeControl "40/5400+30:1800+30"]

1. e4 {[%emt 0:01:19]} e6 {[%emt 0:00:20]} 2. Nf3 {[%emt 0:00:51]} d5 {[%emt 0:00:20]} 3. e5 {[%emt 0:01:24]} c5 {[%emt 0:00:22]} 4. b4 {[%emt 0:00:08]} c4 {[%emt 0:00:47]} 5. a3 {[%emt 0:06:15]} Bd7 {[%emt 0:05:58]} 6. d3 {[%emt 0:10:22]} b5 {[%emt 0:05:34]} 7. dxc4 {[%emt 0:02:51]} bxc4 {[%emt 0:00:23]} 8. Nc3 {[%emt 0:01:43]} Ne7 {[%emt 0:04:35]} 9. h4 {[%emt 0:06:44]} Qb6 {[%emt 0:04:12]} 10. Rb1 {[%emt 0:05:31]} a6 {[%emt 0:07:04]} 11. Be2 {[%emt 0:10:12]} Qc7 {[%emt 0:07:20]} 12. Bf4 {[%emt 0:06:00]} Ng6 {[%emt 0:03:41]} 13. Bg3 {[%emt 0:01:07]} Nc6 {[%emt 0:13:46]} 14. h5 {[%emt 0:07:48]} Ngxe5 {[%emt 0:08:49]} 15. Nxe5 {[%emt 0:00:29]} Nxe5 {[%emt 0:00:13]} 16. Nxd5 {[%emt 0:00:14]} exd5 {[%emt 0:02:16]} 17. Qxd5 {[%emt 0:00:22]} Bc6 {[%emt 0:04:00]} 18. Qxe5+ {[%emt 0:00:20]} Qxe5 {[%emt 0:00:23]} 19. Bxe5 {[%emt 0:00:10]} f6 {[%emt 0:00:00]} 20. Bc3 {[%emt 0:04:10]} Bxg2 {[%emt 0:00:34]} 21. Rh4 {[%emt 0:00:11]} a5 {[%emt 0:10:11]} 22. f3 {[%emt 0:05:10]} axb4 {[%emt 0:01:03]} 23. axb4 {[%emt 0:00:23]} Ra3 {[%emt 0:03:55]} 24. Kd2 {[%emt 0:02:45]} f5 {[%emt 0:01:27]} 25. Rg1 {[%emt 0:05:37]} Be7 {[%emt 0:01:52]} 26. Rxc4 {[%emt 0:05:56]} Bg5+ {[%emt 0:01:04]} 27. f4 {[%emt 0:00:51]} 1-0